Cogmind - Beta 14 @@@ ROGUE MODE // 2025.03.02 @ 13:07:39 Player: Zeta Lockhart Result: Destroyed by as-47994 with Assembled Rifle Performance ------------- Evolutions (0) 0 Regions Visited (2) 400 Robots Destroyed (7) 35 Value Destroyed (148) 148 Prototype IDs (0) 0 Alien Tech Used (0) 0 Bonus (0) 0 TOTAL SCORE: 583 Bonus ------- None Cogmind --------- Core Integrity 0/250 Matter 280/300 Energy 76/100 System Corruption 0% Temperature Cool (20) Movement Rolling (115) Ox1 Location -10/Mines Parts ------- > --- POWER (1) -------- (None) > --- PROPULSION (2) --- Compact Wheel Compact Wheel > --- UTILITY (2) ------ High-capacity Storage Unit Sensor Array > --- WEAPON (2) ------- Light Assault Rifle > --- INVENTORY (20) --- Ion Engine Light Nuclear Core Wheel Wheel Compact Wheel Improved Heat Sink Small Laser Small Laser Small Laser Small Laser Peak State ------------ > --- POWER ------------ Light Ion Engine > --- PROPULSION ------- Wheel Compact Wheel > --- UTILITY ---------- High-capacity Storage Unit Sensor Array > --- WEAPON ----------- Light Assault Rifle Light Assault Rifle > --- INVENTORY -------- Ion Engine Light Nuclear Core Wheel Wheel Compact Wheel Compact Wheel Compact Wheel Improved Heat Sink Small Laser Small Laser Small Laser Small Laser [Rating: 8] Favorites ----------- Power Ion Engine Engine Ion Engine Propulsion Wheel Wheel Wheel Utility Sensor Array Device Sensor Array Storage High-capacity Storage Unit Weapon Light Assault Rifle Ballistic Gun Light Assault Rifle Build | -11 -10 -10 ------- Run | Yrd Mat Min Slots Evolved . | . . . Power . | . . . Propulsion . | . . . Utility . | . . . Weapon . | . . . Parts Attached 14 | 6 5 3 Power 2 | 1 . 1 Engine 2 | 1 . 1 Core . | . . . Reactor . | . . . Propulsion 6 | 2 2 2 Treads . | . . . Leg . | . . . Wheel 6 | 2 2 2 Hover . | . . . Flight . | . . . Utility 3 | 1 2 . Device 1 | . 1 . Storage 2 | 1 1 . Processor . | . . . Hackware . | . . . Protection . | . . . Artifact . | . . . Weapon 3 | 2 1 . Energy Gun . | . . . Energy Cannon . | . . . Ballistic Gun 3 | 2 1 . Ballistic Cannon . | . . . Launcher . | . . . Special Weapon . | . . . Impact Weapon . | . . . Slashing Weapon . | . . . Piercing Weapon . | . . . Special Melee Weapon . | . . . Unidentified Prototypes . | . . . Parts Lost 5 | . 1 4 Power 2 | . 1 1 Propulsion 2 | . . 2 Utility . | . . . Weapon 1 | . . 1 Highest Loss Streak 4 | . 1 4 To Critical Strikes . | . . . Average Slot Usage (%) 95 | . 96 89 Engine 10 | . 11 8 Wheel 27 | . 28 26 Device 13 | . 13 14 Storage 14 | . 14 14 Ballistic Gun 27 | . 27 26 Peak Build Rating 8 | 6 7 8 Average Rating 6 | 4 6 7 On Entrance 4 | . 6 7 Naked Turns . | . . . Heaviest Build 48 | 12 48 46 Greatest Support 32 | 20 26 32 Greatest Overweight (x) 2 | . 2 2 Average Overweight (x) . | . . 1 Largest Inventory Capacity 20 | 8 20 20 Average Capacity 13 | 7 13 20 Most Carried 13 | 5 13 12 Average Carried 8 | 2 8 11 Final Capacity 20 | 8 20 20 Final Carried 13 | 5 13 10 Class Distribution -------------------- 100% | Mutant Dominant Class ---------------- Mutant | -10/Materials Mutant | -10/Mines Resources | -11 -10 -10 ----------- Run | Yrd Mat Min Matter Collected 377 | 268 109 . Remotely . | . . . Salvage Created 359 | 94 265 . Parts 22 | 3 19 . Haulers Intercepted . | . . . Recyclers Shooed 1 | . 1 . Parts Field Recycled . | . . . Retrieved Matter . | . . . Parts Self-Destructed . | . . . Prevented . | . . . Kills | -11 -10 -10 ------- Run | Yrd Mat Min Combat Hostiles Destroyed 3 | . 3 . Guns 3 | . 3 . Classes Destroyed 4 | 1 3 . Builder 1 | . 1 . Recycler 2 | 1 1 . Operator 1 | . 1 . Grunt 3 | . 3 . Best Kill Streak 2 | 1 2 . Combat Bots Only 1 | . 1 . Max Kills in Single Turn 1 | 1 1 . Gunslinging . | . . . Exploded . | . . . Melee . | . . . Uniques/NPCs Destroyed . | . . . Combat | -11 -10 -10 -------- Run | Yrd Mat Min Hostile Shots Fired 61 | . 32 29 Missed 19 | . 13 6 Damage Taken 615 | . 243 372 Core 260 | . 94 166 Absorbed by Shields . | . . . Core Remaining (%) 100 | 100 . . Volleys Fired 39 | 4 35 . Largest 2 | 2 2 . Hottest 40 | 40 40 . Shots Fired 78 | 8 70 . Gun 78 | 8 70 . Cannon . | . . . Launcher . | . . . Special . | . . . Kinetic 78 | 8 70 . Thermal . | . . . Explosive . | . . . Electromagnetic . | . . . Robot Hit Streak 8 | 4 8 . Robot Miss Streak 3 | 3 3 . Penetration Max . | . . . Secondary Targets . | . . . Shots Hit Robots 45 | 4 41 . Core Hits 19 | 2 17 . Critical Kills . | . . . Critical Parts Destroyed 1 | . 1 . Critical Strikes 1 | . 1 . Destroy 1 | . 1 . Melee Attacks . | . . . Impact . | . . . Slashing . | . . . Piercing . | . . . Sneak Attacks . | . . . Combat Hostiles . | . . . Follow-up Attacks . | . . . Damage Inflicted 359 | 34 325 . Guns 359 | 34 325 . Cannons . | . . . Explosions . | . . . Melee . | . . . Ramming . | . . . Kinetic 359 | 34 325 . Thermal . | . . . Explosive . | . . . Electromagnetic . | . . . Impact . | . . . Slashing . | . . . Piercing . | . . . Highest Corruption . | . . . Average Corruption . | . . . Corruption Purged . | . . . Corruption Blocked . | . . . Overload Shots . | . . . Overflow Damage . | . . . Projectiles . | . . . Explosions . | . . . Melee . | . . . Knockbacks . | . . . Impact . | . . . Kinetic . | . . . Secondary . | . . . Self-Inflicted Damage . | . . . Shots . | . . . Rammed . | . . . Targets Rammed . | . . . Kicked . | . . . Crushed . | . . . Highest Temperature 12 | . 12 . Average Temperature 7 | . 7 . Received Heat Transfer 218 | . 138 80 Siege Activations . | . . . Robots Corrupted . | . . . Combat Hostiles . | . . . Parts Fried . | . . . Impact Corruptions . | . . . Robots Melted . | . . . Combat Hostiles . | . . . Parts Melted . | . . . Heat Transferred . | . . . Parts Sabotaged . | . . . Parts Stolen . | . . . Parts Stripped . | . . . Power Chain Reactions . | . . . Alert | -11 -10 -10 ------- Run | Yrd Mat Min Peak Influence 152 | 5 152 58 Initial 58 | . 3 58 Average 48 | 2 56 49 Maximum Alert Level . | . . . Low Security (%) 100 | 100 100 100 Level 1 . | . . . Level 2 . | . . . Level 3 . | . . . Level 4 . | . . . Level 5 . | . . . High Security . | . . . Max Security . | . . . Squads Dispatched 2 | . 2 . Investigation . | . . . Extermination . | . . . Reinforcement 2 | . 2 . Assault . | . . . Garrison . | . . . Intercept . | . . . Searches Triggered . | . . . Construction Impeded . | . . . Haulers Reinforced . | . . . Active Scanning Responses . | . . . Cargo Convoy Interrupts . | . . . Stealth | -11 -10 -10 --------- Run | Yrd Mat Min Distress Signals 1 | . 1 . Communications Jammed . | . . . Distress Signals . | . . . Times Spotted 12 | . 6 6 Peak Tracking Total 9 | . 5 9 Tactical Retreats 1 | . . 1 Traps | -11 -10 -10 ------- Run | Yrd Mat Min Traps Triggered 1 | . 1 . Indirectly . | . . . Trap Hack Attempts . | . . . Triggered . | . . . Disarmed . | . . . Reprogrammed . | . . . Reused . | . . . Traps Extracted . | . . . Installed . | . . . Triggered . | . . . Machines | -11 -10 -10 ---------- Run | Yrd Mat Min Machines Disabled . | . . . Max in Single Turn . | . . . Machines Repaired . | . . . Machines Dismantled . | . . . Machines Sabotaged . | . . . Overloaded Fab Kills . | . . . Hacking | -11 -10 -10 --------- Run | Yrd Mat Min Machines Accessed 3 | . 3 . Terminals 3 | . 3 . Fabricators . | . . . Repair Stations . | . . . Recycling Units . | . . . Scanalyzers . | . . . Garrison Access . | . . . Total Hacks 6 | . 6 . Successful 3 | . 3 . Failed 3 | . 3 . Catastrophic . | . . . Database Lockouts . | . . . Manual . | . . . Terminals 6 | . 6 . Fabricators . | . . . Repair Stations . | . . . Recycling Units . | . . . Scanalyzers . | . . . Garrison Access . | . . . Terminal Hacks 3 | . 3 . Zone Layout 3 | . 3 . Fabricator Hacks . | . . . Repair Station Hacks . | . . . Recycling Unit Hacks . | . . . Scanalyzer . | . . . Garrison Access Hacks . | . . . Unauthorized Hacks . | . . . Terminals . | . . . Fabricators . | . . . Repair Stations . | . . . Recycling Units . | . . . Scanalyzers . | . . . Garrison Access . | . . . Data Cores Recovered . | . . . Used . | . . . Hacking Detections 2 | . 2 . Full Trace Events . | . . . Feedback Events . | . . . Feedback Blocked . | . . . Robot Schematics Acquired . | . . . Robots Built . | . . . Authchips . | . . . Time . | . . . Total Robot Build Rating . | . . . Part Schematics Acquired . | . . . Parts Built . | . . . Authchips . | . . . Time . | . . . Total Part Build Rating . | . . . Parts Repaired . | . . . Time . | . . . Parts Recycled . | . . . Recycled Matter . | . . . Retrieved Matter . | . . . Retrieved Components . | . . . Parts Scanalyzed . | . . . Part Schematics Acquired . | . . . Parts Damaged . | . . . Bothacking | -11 -10 -10 ------------ Run | Yrd Mat Min Used RIF Installer . | . . . Robots Hacked . | . . . Non-combat . | . . . Combat . | . . . Robot Hacks Applied . | . . . Relay Couplers Released . | . . . Fabnet Peak Effective % . | . . . Robots Rewired . | . . . Allies Hacked . | . . . Hacks Repelled . | . . . Allies | -11 -10 -10 -------- Run | Yrd Mat Min Total Allies . | . . . Largest Group . | . . . Highest-Rated Group . | . . . Highest-Rated Ally . | . . . Total Orders . | . . . Ally Attacks . | . . . Total Damage . | . . . Kills . | . . . Allies Corrupted . | . . . Allies Melted . | . . . Intel | -11 -10 -10 ------- Run | Yrd Mat Min Robot Analysis Total . | . . . Derelict Logs Recovered . | . . . Drone Launches . | . . . Drone Recoveries . | . . . Exploration | -11 -10 -10 ------------- Run | Yrd Mat Min Turns Passed 483 | 64 350 69 Spaces Moved 217 | 50 114 53 Core 9 | 9 . . Treads . | . . . Legs . | . . . Wheels 208 | 41 114 53 Hover . | . . . Flight . | . . . Fastest Speed 50 | 50 80 105 Average Speed 94 | 74 96 109 Slowest Speed 130 | 80 110 130 Overloaded Moves . | . . . Propulsion Burnouts . | . . . Robots Hopped . | . . . Cave-ins Triggered . | . . . Exploration Rate (%) 19 | 4 31 22 Regions Visited 2 Branch Regions 1 Pre-discovered Areas . | . . . Known Exits Taken . | . . . Unknown Exits Taken 2 | 1 1 . Scrap Searched . | . . . Spaces Dug . | . . . Terrain Destroyed . | . . . Melee . | . . . Projectile . | . . . AOE . | . . . Terrain Rammed . | . . . Walls Destroyed . | . . . Machines Disabled . | . . . Actions | -11 -10 -10 --------- Run | Yrd Mat Min Total 434 | 70 300 64 Wait 137 | . 129 8 Move 215 | 49 113 53 Hop . | . . . Pick Up 24 | 11 13 . Fast Attach 1 | . 1 . Attach 11 | 6 2 3 Detach . | . . . Swap 2 | . 2 . Drop 5 | . 5 . Fire 39 | 4 35 . Melee . | . . . Ram . | . . . Kick . | . . . Crush . | . . . Escape Stasis . | . . . Rewire . | . . . Trap . | . . . Miscellaneous . | . . . Route ------- -11/Scrapyard -10/Materials -10/Mines History --------- Turn | Location | Event 18 | -11/Scrapyard | Discovered new exit (range 14) 65 | -11/Scrapyard | Entered Materials 323 | -10/Materials | Build established: Mutant 378 | -10/Materials | Discovered new exit (range 14) 415 | -10/Materials | Entered Mines 429 | -10/Mines | Assembled infested the area 459 | -10/Mines | Core integrity fell below 50% 473 | -10/Mines | Core integrity fell below 20% 484 | -10/Mines | Destroyed by as-47994 with Assembled Rifle Last Messages --------------- 00355_ Acquired Imp. Heat Sink. 00356_ Acquired 51 matter. 00358_ Acquired Lgt. Nuclear Core. 00364_ Acquired Wheel. 00378_ EXIT=FOUND 00393_ Connecting with Terminal... >>Layout(Zone) Retrieving Zone 1B layout... Downloaded map data. 00410_ ALERT: Hostiles spotted, dispatching reinforcements to Terminal M004. 00412_ W-16 Scout sends out distress signal. LOCATION=UNKNOWN GOAL=ESCAPE 00429_ ALERT: Infestation in the mines, dispatching Demolisher response squad. 00440_ T-07 Excavator system terminally corrupted. 00456_ Lgt. Ion Engine destroyed. 00468_ Wheel destroyed. 00476_ as-33128 shuts down. 00477_ Com. Wheel destroyed. 00477_ Lgt. Assault Rifle destroyed. Map ----- +----------------------------------------------------+ | ????????## ###???## #?? | | ????????# ##### ##?? | | ????????# #####??? | | ????????# ##??????? | | ????????# """ ##### #???????? | | ????????# """ ##?# #???????? | | ????????## """ #### ##???????? | | ?????????## #?####????????? | | ??????????## #?????????????? | | ???????????###### #?????????????? | | ???????????????## ##????????????? | | ??????????????## ##########???? | | ??????????????# #???? | | ??????????????# #???? | | ??????????????# ####### #???? | | ??????????????# #?????# #???? | | ??????????????## ##?????# #???? | | ???????????????######??????#? #???? | | ???????????????????????????# #???? | | ???????????????????????????# a##??? | | ??????????????????????????##aa #??? | | ?????????????????????????##a #??? | | ????????????????????????## ##??? | | ????????????????????????# ##???? | | ????????????????????????#a ##????? | | ????????????????????????#@ #?????? | | ???????????????????????# #?????? | | ?????????????????????? #?????? | | ????????????????????? #????? | | ???????????????????? ???? | | ???????????????????## ??? | | ????????????????????## ## ?? | | ?????????????????????####?#### ##? | | ?????????????????????????????? ##?? | | ???????????????????????????????#??? | | ??????????????????????????????????? | | ??????????????????????????????????? | | ??????????????????????????????????? | | ??????????????????????????????????? | | ??????????????????????????????????? | | ??????????????????????????????????? | | ??????????????????????????????????? | | ??????????????????????????????????? | | ??????????????????????????????????? | | ??????????????????????????????????? | | ??????????????????????????????????? | | ??????????????????????????????????? | | ??????????????????????????????????? | | | | | +----------------------------------------------------+ Best States ------------- Heat Dissipation 25 Energy Generation 10 Energy Capacity 250 Matter Stores 300 Matter Capacity 300 Sight Range 16 Robot Scan Range 14 Terrain Scan Density 10 Evasion (%) 50 Item Schematics ----------------- None Robot Schematics ------------------ None Fabricated ------------ Nothing Alien Tech Used ----------------- None Achievements -------------- None Challenges ------------ None Game ------ Seed CobblerWardroneSuperbattery Manual? 0 Play Time 00:06:14 Cumulative 49.5 hours Start 2025.03.02 @ 13:02:24 End 2025.03.02 @ 13:07:39 Sessions 1 Manual Loads 0 Difficulty Rogue Special Mode None Game No. 51 Rogue 51 Adventurer 0 Explorer 0 Win Type - Total 0 Types 0/0/0/0/0/0/0/0/0 Lore% 4 Gallery% 30 Achievement% 25 Wizard Run 0 Options --------- Layout 0 ASCII 0 Keyboard 0 Movement Mouse Keybinds 0 Fullscreen 2 Font 12/Smallcaps Map View 41x27 Zoom Use 99% Tactical HUD 1 Map Filters NONE Filters NONE Steam 1 RUN: d98d52c4-aec7-4d11-b065-a7b90f9fb766